fUSD/lending_fUSD_20240322
["ID","MTS","AMOUNT","RATE_DAILY","PERIOD"]
[320040220,1711109191223,-121.19490311,0.00017106,2]
[320040228,1711109395669,55103.0,0.00025948,120]
[320040262,1711109432658,-437.1,0.00016732,2]
[320040263,1711109432669,-7464.24239889,0.00017106,2]
[320040264,1711109432679,-1854.47939833,0.00017106,2]
[320040265,1711109432690,-300.0,0.00017898,2]
[320040266,1711109432700,-1874.03869476,0.00017899,2]
[320040267,1711109432710,-439.4459,0.000179,2]
[320040268,1711109432720,-13027.4385,0.000179,2]
[320040269,1711109432730,-6723.755108,0.000179,2]
[320040270,1711109433162,-7610.633992,0.000179,2]
[320040271,1711109433172,-419.94281977,0.000179,2]
[320040272,1711109433181,-503.5352,0.000179,2]
[320040273,1711109433191,-1798.19030398,0.000179,2]
[320040274,1711109433200,-723.2970876,0.000179,2]
[320040275,1711109433209,-1228.87819461,0.00017998,2]
[320040276,1711109433218,-161.54400966,0.00017998,2]
[320040277,1711109433227,-234.032219,0.00017998,2]
[320040278,1711109433237,-45.88792177,0.00017998,2]
[320040279,1711109433262,-311.37707824,0.00017998,2]
[320040280,1711109433272,-1428.62292176,0.00017998,2]
[320040281,1711109433284,-3365.13871246,0.00017998,2]
[320040282,1711109433294,-229.74927499,0.00017999,2]
[320040283,1711109433303,-343.34673668,0.00017999,2]
[320040284,1711109433313,-2529.9322867,0.00018,2]
[320040285,1711109433342,-1719.99999993,0.00018,2]
[320040286,1711109433395,-306.20467746,0.00018,2]
[320040289,1711109433487,-695.881366,0.00018,2]
[320040310,1711109438339,-86060.45383764,0.00018,2]
[320040313,1711109438354,-108857.69218133,0.00018,2]
[320040315,1711109438371,-850.75,0.00018,2]
[320040323,1711109438445,-3369.17312535,0.00018,2]
[320040325,1711109438458,-466175.43882062,0.00018,2]
[320040327,1711109438470,-64945.26177047,0.00018,2]
[320040333,1711109438573,-406.0,0.00018,2]
[320040334,1711109438666,-643.01,0.00018,2]
[320040335,1711109438678,-30118.43550881,0.00018,2]
[320040336,1711109438753,-648.71715542,0.00018,2]
[320040367,1711109440423,-290515.77105169,0.00018,2]
[320040368,1711109440433,-198.62072299,0.00018,2]
[320040369,1711109440442,-120407.74518361,0.00018,2]
[320040370,1711109440642,-7617.2128813,0.00018,2]
[320040371,1711109440652,-1278.6,0.00018,2]
[320040372,1711109440662,-499.99,0.00018,2]
[320040373,1711109440672,-3258.0,0.000181,2]
[320040374,1711109440682,-723.29708741,0.00018208,2]
[320040375,1711109440692,-164.82,0.00018418,2]
[320040376,1711109440702,-2913.04,0.00018422,2]
[320040377,1711109440713,-9915.67,0.00018467,2]
[320040378,1711109440723,-723.29708741,0.00018515,2]
[320040379,1711109440732,-151.79,0.00018573,2]
[320040380,1711109440742,-250.0,0.0001859,2]
[320040381,1711109440751,-233.18,0.00018627,2]
[320040382,1711109440761,-703.99626519,0.00018675,2]
[320040383,1711109440774,-156.17,0.0001871,2]
[320040384,1711109440784,-151.79,0.00018759,2]
[320040385,1711109440793,-723.29708741,0.00018823,2]
[320040386,1711109440803,-500.0,0.00018853,2]
[320040387,1711109440815,-250.0,0.00018895,2]
[320040388,1711109440824,-151.79,0.00018944,2]
[320040389,1711109440834,-1000.0,0.00018984,2]
[320040390,1711109440844,-437.1,0.00018996,2]
[320040391,1711109440853,-233.20750904,0.00019,2]
[320040392,1711109440863,-999.99637605,0.00019,2]
[320040394,1711109440873,-1798.19030392,0.00019053,2]
[320040396,1711109440883,-151.79,0.0001913,2]
[320040398,1711109440895,-723.29708741,0.0001913,2]
[320040400,1711109440905,-172.82,0.0001918,2]
[320040402,1711109440914,-172.82,0.0001918,2]
[320040404,1711109440923,-172.82,0.0001918,2]
[320040406,1711109440933,-172.82,0.0001918,2]
[320040408,1711109440943,-172.82,0.0001918,2]
[320040411,1711109440953,-172.82,0.0001918,2]
[320040413,1711109440963,-156.17,0.00019198,2]
[320040414,1711109440972,-419.94281971,0.00019242,2]
[320040417,1711109440982,-151.79,0.00019316,2]
[320040419,1711109440991,-723.29708741,0.00019438,2]
[320040420,1711109441001,-151.79,0.00019502,2]
[320040423,1711109441010,-156.17,0.00019685,2]
[320040425,1711109441020,-612.43503012,0.00019739,2]
[320040427,1711109441030,-723.29708741,0.00019745,2]
[320040429,1711109441039,-1247.90893269,0.0002,2]
[320040431,1711109441048,-5000.0,0.0002,2]
[320040433,1711109441058,-5146.55055849,0.0002,2]
[320040435,1711109441067,-590.61224363,0.0002,2]
[320040437,1711109441077,-723.29708741,0.00020053,2]
[320040439,1711109441085,-1798.19030392,0.00020206,2]
[320040441,1711109441095,-1387.92,0.00020411,2]
[320040443,1711109441105,-178.62,0.00020514,2]
[320040445,1711109441114,-419.94281971,0.00020585,2]
[320040447,1711109441124,-3709.272,0.00020773,2]
[320040449,1711109441133,-282.32803275,0.0002079,2]
[320040451,1711109441144,-282.32803273,0.0002079,2]
[320040453,1711109441154,-282.32803273,0.0002079,2]
[320040455,1711109441164,-537.471,0.00020862,2]
[320040457,1711109441173,-1226.0,0.00020862,2]
[320040459,1711109441183,-458.283,0.00020862,2]
[320040461,1711109441193,-280.713,0.00020862,2]
[320040463,1711109441202,-1232.99544614,0.00020862,2]
[320040466,1711109441219,-160.67355386,0.00020862,2]
[320040468,1711109441229,-167.67190673,0.00020862,2]
[320040470,1711109441241,-241.79109327,0.00020862,2]
[320040472,1711109441250,-498.96238304,0.000209,2]
[320040474,1711109441259,-4154.33807589,0.000209,2]
[320040476,1711109441269,-172.82,0.0002099,2]
[320040478,1711109441278,-172.82,0.0002099,2]
[320040480,1711109441287,-172.82,0.0002099,2]
[320040482,1711109441297,-172.82,0.0002099,2]
[320040484,1711109441307,-234.032219,0.00020998,2]
[320040486,1711109441317,-234.032219,0.00020998,2]
[320040488,1711109441326,-234.032219,0.00020998,2]
[320040490,1711109441335,-550.0,0.00021,3]
[320040492,1711109441345,-17161.56067667,0.00021,2]
[320040495,1711109441366,-2583.52292,0.00021,2]
[320040518,1711109441562,-3206.1,0.00021,2]
[320040520,1711109441574,-2479.4185416,0.00021,2]
[320040534,1711109443369,-723.29708741,0.00020361,2]
[320040535,1711109443380,-63476.70291265,0.00021,2]
[320040536,1711109443392,-448.47186374,0.00021,2]
[320040537,1711109443409,-9626.7,0.00021,2]
[320040538,1711109443425,-98028.05885814,0.00021,2]
[320040543,1711109443621,-1734.6000003,0.00021,2]
[320040549,1711109443689,-64075.62,0.00021,2]
[320040550,1711109443701,-1400984.01351477,0.00021,2]
[320040551,1711109443710,-159.46,0.00021,2]
[320040552,1711109443720,-204.17,0.00021,2]
[320040553,1711109443730,-163.74,0.00021,2]
[320040554,1711109443739,-2000.0,0.00021096,2]
[320040555,1711109443748,-8906.02,0.00021096,2]
[320040556,1711109443758,-437.1,0.0002126,2]
[320040557,1711109443769,-1000.0,0.00021357,2]
[320040558,1711109443780,-1798.19030392,0.00021359,2]
[320040559,1711109443794,-282.32803273,0.0002158,2]
[320040560,1711109443803,-1250.0,0.000219,2]
[320040561,1711109443814,-203.42,0.00021918,10]
[320040562,1711109443824,-250.0,0.00021918,2]
[320040563,1711109443833,-419.94281971,0.00021927,2]
[320040564,1711109443843,-780.27085357,0.00022,2]
[320040565,1711109443852,-257.95511327,0.00022162,2]
[320040566,1711109443861,-772.0,0.00022171,2]
[320040567,1711109443870,-257.95511327,0.00022264,2]
[320040568,1711109443879,-153.0,0.00022301,2]
[320040569,1711109443889,-227.0,0.00022301,2]
[320040570,1711109443901,-151.39936612,0.00022439,2]
[320040571,1711109443910,-1000.0,0.00022466,2]
[320040572,1711109443920,-151.39936612,0.00022512,2]
[320040573,1711109443930,-1798.19030392,0.00022512,2]
[320040574,1711109443939,-155.22543092,0.00022668,2]
[320040575,1711109443949,-282.32803273,0.00022807,2]
[320040576,1711109443958,-154.27708643,0.00022931,2]
[320040577,1711109443968,-375.81,0.00022986,2]
[320040578,1711109443978,-600.0,0.00023,3]
[320040579,1711109443987,-257.95511327,0.00023033,2]
[320040580,1711109443996,-1387.92,0.00023151,2]
[320040581,1711109444006,-204.17,0.000232,2]
[320040582,1711109444015,-800.0,0.00023205,2]
[320040583,1711109444024,-158.2082673,0.00023221,2]
[320040584,1711109444033,-153.0,0.00023233,2]
[320040585,1711109444042,-227.0,0.00023233,2]
[320040586,1711109444051,-419.94281971,0.0002327,2]
[320040587,1711109444060,-257.95511327,0.00023415,2]
[320040588,1711109444070,-257.95511327,0.00023444,2]
[320040589,1711109444079,-437.1,0.00023524,2]
[320040590,1711109444089,-1920.53549675,0.0002354,2]
[320040591,1711109444098,-159.46,0.000236,2]
[320040592,1711109444107,-154.27708643,0.00023651,2]
[320040593,1711109444117,-1798.19030392,0.00023665,2]
[320040594,1711109444126,-1000.0,0.0002373,2]
[320040595,1711109444135,-197.23106681,0.00023744,8]
[320040596,1711109444148,-448.4324,0.00023788,2]
[320040597,1711109444157,-27615.4284,0.00023788,2]
[320040598,1711109444167,-155.22543092,0.00023844,2]
[320040599,1711109444176,-158.2082673,0.00023915,2]
[320040600,1711109444185,-257.95511327,0.00023976,2]
[320040601,1711109444194,-223.77734687,0.00024,2]
[320040602,1711109444204,-1362.40826936,0.00024,2]
[320040603,1711109444213,-282.32803273,0.00024034,2]
[320040604,1711109444223,-155.35946196,0.00024128,2]
[320040605,1711109444232,-408.61867044,0.00024153,2]
[320040606,1711109444241,-227.0,0.00024164,2]
[320040607,1711109444250,-29999.99,0.00024174,2]
[320040608,1711109444259,-387.983648,0.00024211,2]
[320040609,1711109444268,-200.0,0.00024211,2]
[320040610,1711109444277,-1000.0,0.00024324,2]
[320040611,1711109444286,-154.62857147,0.00024344,2]
[320040612,1711109444295,-800.0,0.00024356,2]
[320040613,1711109444304,-155.22543092,0.00024425,2]
[320040614,1711109444314,-5000.00052084,0.000245,2]
[320040615,1711109444324,-39048.59426495,0.00024527,2]
[320040616,1711109444333,-151.39936612,0.00024603,2]
[320040617,1711109444342,-419.94281971,0.00024612,2]
[320040618,1711109444351,-197.23106679,0.00024632,9]
[320040619,1711109444360,-498.96238304,0.00024647,2]
[320040620,1711109444369,-4154.33807587,0.00024647,2]
[320040621,1711109444379,-181.12533451,0.0002465,2]
[320040622,1711109444388,-1497.70145,0.0002465,2]
[320040623,1711109444399,-1000.0,0.00024658,3]
[320040624,1711109444408,-203.42,0.00024658,10]
[320040625,1711109444418,-200.0,0.00024699,2]
[320040626,1711109444427,-1798.19030392,0.00024819,2]
[320040627,1711109444437,-800.0,0.00024877,2]
[320040628,1711109444446,-800.0,0.00024877,2]
[320040629,1711109444456,-996.91253561,0.00024898,2]
[320040630,1711109444466,-261.04343361,0.00024898,2]
[320040631,1711109444476,-458.98577536,0.00024898,2]
[320040632,1711109444485,-2353.70752281,0.00024899,2]
[320040633,1711109444494,-2173.58056167,0.00024899,2]
[320040634,1711109444504,-251522.32123846,0.000249,5]
[320040635,1711109444513,-3000.0,0.000249,2]
[320040636,1711109444523,-332.68544586,0.000249,7]
[320040637,1711109444532,-151.73532191,0.000249,2]
[320040638,1711109444542,-151.73532162,0.000249,2]
[320040639,1711109444551,-151.73532162,0.000249,2]
[320040640,1711109444560,-151.73532162,0.000249,2]
[320040641,1711109444569,-151.73532162,0.000249,2]
[320040642,1711109444578,-151.73532162,0.000249,2]
[320040643,1711109444588,-151.73532162,0.000249,2]
[320040644,1711109444599,-151.73532162,0.000249,2]
[320040645,1711109444608,-151.73532162,0.000249,2]
[320040646,1711109444618,-151.73532162,0.000249,2]
[320040647,1711109444627,-151.73532162,0.000249,2]
[320040648,1711109444637,-728.14612404,0.00024947,2]
[320040649,1711109444649,-600.0,0.0002497,2]
[320040650,1711109444658,-400.0,0.0002497,2]
[320040651,1711109444667,-5061.83924816,0.00025,2]
[320040652,1711109444677,-3000.0,0.00025,2]
[320040653,1711109444687,-155.0,0.00025,2]
[320040654,1711109444696,-155.19920397,0.00025,2]
[320040655,1711109444705,-2000.0,0.00025,2]
[320040656,1711109444714,-650.0,0.00025,3]
[320040657,1711109444723,-204.17,0.00025,2]
[320040658,1711109444733,-312.76,0.00025,2]
[320040659,1711109444742,-2199.7066512,0.00025005,2]
[320040660,1711109444752,-2000.0,0.00025006,2]
[320040661,1711109444761,-257.95511327,0.00025041,2]
[320040662,1711109444775,-227.0,0.00025096,2]
[320040663,1711109444784,-151.73532162,0.00025137,2]
[320040664,1711109444794,-158.2082673,0.00025187,2]
[320040665,1711109444803,-282.32803273,0.00025261,2]
[320040666,1711109444812,-159.46,0.000253,2]
[320040667,1711109444822,-210.0,0.0002531,2]
[320040668,1711109444831,-155.22543092,0.00025352,2]
[320040669,1711109444840,-151.39936612,0.00025369,2]
[320040670,1711109444851,-1059.30019483,0.00025429,2]
[320040671,1711109444861,-1111.87284978,0.00025489,2]
[320040672,1711109444871,-1121.55574548,0.00025489,2]
[320040673,1711109444880,-197.23106679,0.00025521,10]
[320040674,1711109444889,-191.37408895,0.00025708,2]
[320040675,1711109444900,-151.39936612,0.00025761,2]
[320040676,1711109444910,-437.1,0.00025787,2]
[320040677,1711109444919,-151.73532162,0.00025795,2]
[320040678,1711109444929,-150.0,0.000258,2]
[320040679,1711109444938,-167.648078,0.000258,2]
[320040680,1711109444947,-1000.0,0.00025849,2]
[320040681,1711109444957,-151.39936612,0.00025864,2]
[320040682,1711109444966,-1387.92,0.00025891,2]
[320040683,1711109444976,-220.78192916,0.0002592,2]
[320040684,1711109444985,-320.4035506,0.00025926,2]
[320040685,1711109444994,-314.8816182,0.00025926,2]
[320040686,1711109445003,-5423.1328328,0.00025926,2]
[320040687,1711109445013,-5329.6689104,0.00025926,2]
[320040688,1711109445022,-234.032219,0.00025928,2]
[320040689,1711109445031,-234.032219,0.00025928,2]
[320040690,1711109445040,-4372.9886139,0.0002593,2]
[320040691,1711109445049,-4297.6231966,0.0002593,2]
[320040692,1711109445059,-6281.96048621,0.0002594,30]
[320040693,1711109445068,-151.0,0.00025944,7]
[320040694,1711109445077,-151.0,0.00025944,7]
[320040695,1711109445085,-151.0,0.00025944,7]
[320040696,1711109445094,-151.0,0.00025944,7]
[320040697,1711109445103,-151.0,0.00025944,7]
[320040698,1711109445112,-151.0,0.00025944,7]
[320040699,1711109445121,-151.0,0.00025944,7]
[320040700,1711109445130,-151.0,0.00025944,7]
[320040701,1711109445140,-151.0,0.00025944,7]
[320040702,1711109445151,-151.0,0.00025944,7]
[320040703,1711109445160,-229.108284,0.00025944,7]
[320040704,1711109445169,-151.0,0.00025944,7]
[320040705,1711109445178,-151.0,0.00025944,7]
[320040706,1711109445187,-151.0,0.00025944,7]
[320040707,1711109445197,-151.0,0.00025944,7]
[320040708,1711109445206,-151.0,0.00025944,7]
[320040709,1711109445217,-299.176164,0.00025944,7]
[320040710,1711109445226,-257.105322,0.00025944,7]
[320040711,1711109445236,-151.0,0.00025944,7]
[320040712,1711109445245,-151.0,0.00025944,7]
[320040713,1711109445254,-151.0,0.00025944,7]
[320040714,1711109445264,-169.348144,0.00025944,7]
[320040715,1711109445274,-169.348144,0.00025944,7]
[320040716,1711109445284,-219.113817,0.00025944,7]
[320040717,1711109445294,-303.39444,0.00025944,7]
[320040718,1711109445305,-303.39444,0.00025944,7]
[320040719,1711109445314,-229.510697,0.00025944,7]
[320040720,1711109445323,-175.997,0.00025944,7]
[320040721,1711109445334,-175.997,0.00025944,7]
[320040722,1711109445343,-314.732103,0.00025944,7]
[320040723,1711109445353,-314.732103,0.00025944,7]
[320040724,1711109445362,-151.0,0.00025944,7]
[320040725,1711109445371,-245.0,0.00025944,7]
[320040726,1711109445381,-151.0,0.00025944,7]
[320040727,1711109445391,-183.711982,0.00025944,7]
[320040728,1711109445402,-183.711982,0.00025944,7]
[320040729,1711109445412,-232.182676,0.00025944,7]
[320040730,1711109445421,-232.182676,0.00025944,7]
[320040731,1711109445431,-213.198777,0.00025944,7]
[320040732,1711109445440,-151.0,0.00025944,7]
[320040733,1711109445450,-151.0,0.00025944,7]
[320040734,1711109445461,-151.0,0.00025944,7]
[320040735,1711109445470,-151.0,0.00025944,7]
[320040736,1711109445479,-154.081655,0.00025944,7]
[320040737,1711109445488,-151.0,0.00025944,7]
[320040738,1711109445497,-151.0,0.00025944,7]
[320040739,1711109445506,-151.0,0.00025944,7]
[320040740,1711109445515,-151.0,0.00025944,7]
[320040741,1711109445525,-151.0,0.00025944,7]
[320040742,1711109445534,-188.097108,0.00025944,7]
[320040743,1711109445544,-579.245287,0.00025944,7]
[320040744,1711109445554,-579.245287,0.00025944,7]
[320040745,1711109445562,-188.097108,0.00025944,7]
[320040746,1711109445572,-151.0,0.00025944,7]
[320040747,1711109445720,-287.51147,0.00025944,7]
[320040748,1711109445730,-151.0,0.00025944,7]
[320040749,1711109445740,-151.0,0.00025944,7]
[320040750,1711109445749,-151.0,0.00025944,7]
[320040751,1711109445758,-3741.669878,0.00025944,7]
[320040752,1711109445767,-281.445774,0.00025944,7]
[320040753,1711109445776,-3741.669878,0.00025944,7]
[320040754,1711109445788,-151.0,0.00025944,7]
[320040755,1711109445797,-281.445774,0.00025944,7]
[320040756,1711109445806,-151.0,0.00025944,7]
[320040757,1711109445815,-331.581339,0.00025944,7]
[320040758,1711109445825,-331.581339,0.00025944,7]
[320040759,1711109445835,-151.0,0.00025944,7]
[320040760,1711109445844,-561.636564,0.00025944,7]
[320040761,1711109445853,-561.636564,0.00025944,7]
[320040762,1711109445863,-388.08074798,0.00025944,2]
[320040763,1711109445872,-151.0,0.00025946,7]
[320040764,1711109445882,-257.105322,0.00025946,7]
[320040765,1711109445892,-151.0,0.00025946,7]
[320040766,1711109445902,-151.0,0.00025946,7]
[320040767,1711109445912,-151.0,0.00025946,7]
[320040768,1711109445921,-169.348144,0.00025946,7]
[320040769,1711109445930,-169.348144,0.00025946,7]
[320040770,1711109445940,-303.39444,0.00025946,7]
[320040771,1711109445949,-303.39444,0.00025946,7]
[320040772,1711109445959,-175.997,0.00025946,7]
[320040773,1711109445968,-175.997,0.00025946,7]
[320040774,1711109445977,-300.0,0.00025946,2]
[320040775,1711109445986,-300.0,0.00025946,2]
[320040776,1711109445996,-314.732103,0.00025946,7]
[320040777,1711109446006,-314.732103,0.00025946,7]
[320040778,1711109446015,-151.39936612,0.00025946,2]
[320040779,1711109446024,-151.0,0.00025947,7]
[320040780,1711109446033,-151.0,0.00025947,7]
[320040781,1711109446042,-183.711982,0.00025947,7]
[320040782,1711109446052,-183.711982,0.00025947,7]
[320040783,1711109446061,-232.182676,0.00025947,7]
[320040784,1711109446070,-232.182676,0.00025947,7]
[320040785,1711109446080,-151.0,0.00025947,7]
[320040786,1711109446089,-151.0,0.00025947,7]
[320040787,1711109446099,-151.0,0.00025947,7]
[320040788,1711109446107,-151.0,0.00025947,7]
[320040789,1711109446116,-151.0,0.00025947,7]
[320040790,1711109446125,-151.0,0.00025947,7]
[320040791,1711109446134,-151.0,0.00025947,7]
[320040792,1711109446145,-151.0,0.00025947,7]
[320040793,1711109446154,-151.0,0.00025947,7]
[320040794,1711109446163,-188.097108,0.00025947,7]
[320040795,1711109446172,-579.245287,0.00025947,7]
[320040796,1711109446181,-579.245287,0.00025947,7]
[320040798,1711109446190,-188.097108,0.00025947,7]
[320040799,1711109446199,-151.0,0.00025947,7]
[320040800,1711109446209,-151.0,0.00025947,7]
[320040801,1711109446218,-151.0,0.00025947,7]
[320040802,1711109446227,-151.0,0.00025947,7]
[320040803,1711109446236,-3741.669878,0.00025947,7]
[320040804,1711109446245,-281.445774,0.00025947,7]
[320040805,1711109446254,-3741.669878,0.00025947,7]
[320040806,1711109446264,-151.0,0.00025947,7]
[320040808,1711109446274,-281.445774,0.00025947,7]
[320040810,1711109446284,-151.0,0.00025947,7]
[320040812,1711109446294,-331.581339,0.00025947,7]
[320040814,1711109446304,-331.581339,0.00025947,7]
[320040816,1711109446314,-156.73692,0.00025947,7]
[320040818,1711109446324,-151.0,0.00025947,7]
[320040820,1711109446334,-561.636564,0.00025947,7]
[320040822,1711109446344,-561.636564,0.00025947,7]
[320040823,1711109446355,-402.720022,0.00025947,7]
[320040824,1711109446365,-402.720022,0.00025947,7]
[320040825,1711109446375,-151.0,0.00025947,7]
[320040826,1711109446384,-151.0,0.00025947,7]
[320040827,1711109446397,-151.0,0.00025947,7]
[320040828,1711109446406,-1312.772811,0.00025947,7]
[320040829,1711109446418,-1312.772811,0.00025947,7]
[320040830,1711109446427,-151.0,0.00025947,7]
[320040831,1711109446437,-1773307.38058254,0.00025947,3]
[320040976,1711109449606,-618.34122645,0.00020999,2]
[320040977,1711109449617,-151.0,0.00025947,7]
[320040978,1711109449626,-367937.00801765,0.00025947,3]
[320040979,1711109449960,-106999.1495748,0.00025947,3]
[320040980,1711109449996,-6461.15,0.00025947,3]
[320040981,1711109450035,-609.96644947,0.00025947,3]
[320040982,1711109450060,-2917.42752867,0.00025947,3]
[320040983,1711109450145,-307.55999556,0.00025947,3]
[320040984,1711109450159,-425.4125,0.00025947,3]
[320040985,1711109450323,-325805.30942591,0.00025947,3]
[320040986,1711109450335,-340.83049,0.00025947,3]
[320040987,1711109450365,-320.61054471,0.00017106,2]
[320040988,1711109450454,-1251.84359666,0.00017106,2]
[320040989,1711109451601,-1185.96618852,0.00017106,2]
[320040990,1711109451614,-131.36537754,0.00017106,2]
[320040991,1711109451625,-723.29708741,0.00020668,2]
[320040992,1711109451636,-428.38672367,0.00024898,2]
[320040993,1711109451646,-151.0,0.00025947,7]
[320040994,1711109451659,-42424.59041233,0.00025947,3]
[320040995,1711109451673,-1733.96100007,0.00025947,3]
[320040996,1711109451687,-114613.52400001,0.00025947,3]
[320040997,1711109451700,-83384.93508063,0.00025947,3]
[320040998,1711109451712,-3119.79934069,0.00025947,3]
[320040999,1711109451733,-325.008,0.00025947,3]
[320041000,1711109451747,-660762.45098039,0.00025947,3]
[320041001,1711109451759,-7166.04250441,0.00025947,3]
[320041002,1711109451777,-751.62822492,0.00025947,3]
[320041003,1711109451809,-7791.06792962,0.00025947,3]
[320041004,1711109451999,-214.5273441,0.00020998,2]
[320041005,1711109452011,-73.30511786,0.00020999,2]
[320041006,1711109452047,-81.69488214,0.00020999,2]
[320041007,1711109452059,-746.1557637,0.0002593,2]
[320041008,1711109452070,-733.2962881,0.0002593,2]
[320041009,1711109452081,-4733.20809217,0.00025947,3]
[320041010,1711109452096,-34039.99999995,0.00025947,3]
[320041011,1711109452110,-3497.34912918,0.00025947,3]
[320041012,1711109452128,-981.57478523,0.00025947,3]
[320041013,1711109452142,-5958.82319981,0.00025947,3]
[320041015,1711109452158,-5954.69000001,0.00025947,3]
[320041028,1711109564268,290.33,0.00025922,120]
[320041064,1711110170426,470.64,0.00014525,2]
[320041071,1711110354409,-262.03010407,0.00015698,2]
[320041072,1711110354429,-4174.77102397,0.00015698,2]
[320041073,1711110354449,-235.14404821,0.00015698,2]
[320041074,1711110354469,-5940.0643425,0.00015699,2]
[320041075,1711110354488,-358.38056777,0.00015699,2]
[320041076,1711110354507,-5510.79847024,0.00015699,2]
[320041077,1711110354528,-267.87154933,0.000157,2]
[320041078,1711110354549,-485.24181947,0.000157,2]
[320041079,1711110354568,-445.17249158,0.000157,2]
[320041080,1711110354587,-155.0,0.000157,2]
[320041081,1711110354605,-704.55291816,0.00015701,2]
[320041082,1711110354624,-360.79039174,0.00015702,2]
[320041083,1711110354644,-1884.55894075,0.00015703,2]
[320041084,1711110354663,-934.0,0.00015703,2]
[320041085,1711110354683,-1053.65472628,0.00015704,2]
[320041086,1711110354704,-150.0,0.00015711,2]
[320041087,1711110354724,-250.0,0.00016329,2]
[320041088,1711110354744,-456.16,0.00016368,2]
[320041089,1711110354765,-3838.89,0.00016482,2]
[320041090,1711110354785,-250.0,0.00016535,2]
[320041091,1711110354805,-500.0,0.00016554,2]
[320041092,1711110354825,-1216.7,0.00016556,2]
[320041093,1711110354845,-470.64,0.00016789,2]
[320041094,1711110354865,-499.99,0.00016895,2]
[320041095,1711110354885,-155.0,0.00016902,2]
[320041096,1711110354906,-339.48153177,0.00016903,2]
[320041097,1711110354926,-155.22620694,0.00016903,2]
[320041098,1711110354945,-156.18,0.00016904,2]
[320041099,1711110354963,-16532.5564,0.00016904,2]
[320041100,1711110354984,-1000.34971048,0.00017,2]
[320041101,1711110355004,-937.16375676,0.00017106,2]
[320041102,1711110355023,-321.0181397,0.00017106,2]
[320041103,1711110355043,-1468.86583408,0.00017106,2]
[320041104,1711110355064,-160.02,0.00017196,2]
[320041105,1711110355085,-160.02,0.00017241,2]
[320041106,1711110355106,-210.0,0.00017282,2]
[320041107,1711110355127,-160.02,0.00017286,2]
[320041108,1711110355147,-160.02,0.00017331,2]
[320041109,1711110355168,-160.02,0.00017377,2]
[320041110,1711110355190,-160.02,0.00017422,2]
[320041111,1711110355211,-160.02,0.00017467,2]
[320041112,1711110355230,-316.22945023,0.0001749,2]
[320041114,1711110433112,-267.87154933,0.00016893,2]
[320041115,1711110433132,-198.31978259,0.00016894,2]
[320041116,1711110433154,-250.0,0.00016895,2]
[320041117,1711110433173,-1647.43844513,0.00016902,2]
[320041118,1711110433191,-444.60502864,0.00017488,2]
[320041119,1711110433210,-754.7322729,0.00017488,2]
[320041120,1711110433230,-155.60226171,0.00017488,2]
[320041121,1711110433249,-150.0,0.00017488,2]
[320041122,1711110433271,-484.72991127,0.00017489,2]
[320041123,1711110433291,-704.0564632,0.00017489,2]
[320041124,1711110433311,-234.73665199,0.00017489,2]
[320041125,1711110433329,-1817.77368898,0.00017489,2]
[320041126,1711110433349,-1229.95287678,0.0001749,2]
[320041127,1711110433368,-12484.94124997,0.000175,2]
[320041128,1711110433389,-160.02,0.00017513,2]
[320041129,1711110433410,-160.02,0.00017558,2]
[320041130,1711110433431,-160.02,0.00017603,2]
[320041131,1711110433451,-160.02,0.00017648,2]
[320041132,1711110433471,-160.02,0.00017694,2]
[320041133,1711110433489,-431.718,0.000177,2]
[320041134,1711110433509,-208.5555,0.000177,2]